Cogmind - Beta 14 @@@ ROGUE MODE // 2024.08.12 @ 14:12:29 Player: tovernaar123 Result: Destroyed by Y-45 Defender with Heavy Assault Rifle Performance ------------- Evolutions (0) 0 Regions Visited (2) 400 Robots Destroyed (14) 70 Value Destroyed (379) 379 Prototype IDs (0) 0 Alien Tech Used (0) 0 Bonus (52) 52 TOTAL SCORE: 901 Bonus ------- Follower Combat Kills 60 Friendly Fire -8 Cogmind --------- Core Integrity 0/250 Matter 300/300 Energy 100/100 System Corruption 0% Temperature Cool (0) Movement Walking (120) Location -10/Mines Parts ------- > --- POWER (1) -------- (None) > --- PROPULSION (2) --- Carbon-fiber Leg > --- UTILITY (2) ------ Small Storage Unit Weapon Shielding > --- WEAPON (2) ------- Particle Gun Ripper > --- INVENTORY (8) ---- Light Ion Engine Light Ion Engine Small Storage Unit Seismic Detector Core Shielding Light Cannon Grenade Launcher Mining Laser Peak State ------------ > --- POWER ------------ Light Nuclear Core > --- PROPULSION ------- Wheel > --- UTILITY ---------- Small Storage Unit Weapon Shielding > --- WEAPON ----------- Particle Gun Ripper > --- INVENTORY -------- Light Ion Engine Light Ion Engine Small Storage Unit Seismic Detector Core Shielding Light Cannon Grenade Launcher Mining Laser [Rating: 12] Favorites ----------- Power Light Nuclear Core Engine Ion Engine Power Core Light Nuclear Core Propulsion Wheel Treads Light Treads Leg Carbon-fiber Leg Wheel Wheel Utility Small Storage Unit Device Seismic Detector Storage Small Storage Unit Protection Weapon Shielding Weapon EM Pulse Gun Energy Gun EM Pulse Gun Special Weapon Mining Laser Slashing Weapon Ripper Build | -11 -10 -10 ------- Run | Yrd Mat Min Slots Evolved . | . . . Power . | . . . Propulsion . | . . . Utility . | . . . Weapon . | . . . Parts Attached 22 | 10 9 3 Power 3 | 2 1 . Engine 2 | 2 . . Core 1 | . 1 . Reactor . | . . . Propulsion 7 | 4 2 1 Treads 1 | 1 . . Leg 2 | 1 . 1 Wheel 4 | 2 2 . Hover . | . . . Flight . | . . . Utility 4 | 2 1 1 Device 1 | 1 . . Storage 2 | 1 1 . Processor . | . . . Hackware . | . . . Protection 1 | . . 1 Artifact . | . . . Weapon 8 | 2 5 1 Energy Gun 6 | 2 4 . Energy Cannon . | . . . Ballistic Gun . | . . . Ballistic Cannon . | . . . Launcher . | . . . Special Weapon 1 | . 1 . Impact Weapon . | . . . Slashing Weapon 1 | . . 1 Piercing Weapon . | . . . Special Melee Weapon . | . . . Unidentified Prototypes . | . . . Parts Lost 5 | . 2 3 Power 1 | . . 1 Propulsion 3 | . 1 2 Utility . | . . . Weapon 1 | . 1 . Highest Loss Streak 2 | . 2 2 To Critical Strikes . | . . . Average Slot Usage (%) 91 | . 97 82 Engine 4 | . 9 . Core 7 | . 4 11 Wheel 20 | . 27 12 Device 8 | . 14 1 Storage 14 | . 14 14 Protection 5 | . . 12 Energy Gun 22 | . 25 18 Slashing Weapon 4 | . . 9 Peak Build Rating 12 | 7 10 12 Average Rating 8 | 4 7 10 On Entrance 5 | . 7 10 Naked Turns . | . . . Heaviest Build 17 | 15 16 17 Greatest Support 32 | 26 32 26 Greatest Overweight (x) 3 | 2 . 3 Average Overweight (x) . | . . . Largest Inventory Capacity 8 | 8 8 8 Average Capacity 7 | 5 8 8 Most Carried 8 | 6 8 8 Average Carried 7 | 3 6 7 Final Capacity 8 | 8 8 8 Final Carried 8 | 5 7 8 Class Distribution -------------------- 100% | Mutant Dominant Class ---------------- Mutant | -10/Materials Mutant | -10/Mines Resources | -11 -10 -10 ----------- Run | Yrd Mat Min Matter Collected 410 | 151 229 30 Remotely . | . . . Salvage Created 612 | 128 409 75 Parts 32 | 5 26 1 Haulers Intercepted . | . . . Recyclers Shooed . | . . . Parts Field Recycled . | . . . Retrieved Matter . | . . . Parts Self-Destructed . | . . . Prevented . | . . . Kills | -11 -10 -10 ------- Run | Yrd Mat Min Combat Hostiles Destroyed 8 | . 6 2 Guns 7 | . 6 1 AOE 1 | . . 1 Classes Destroyed 4 | 2 2 . Tunneler 2 | 2 . . Recycler 2 | 1 1 . Watcher 2 | . 2 . Grunt 8 | . 6 2 Best Kill Streak 5 | 2 5 2 Combat Bots Only 4 | . 4 2 Max Kills in Single Turn 2 | 1 2 1 Gunslinging 1 | . 1 . Exploded 1 | . . 1 Melee . | . . . Uniques/NPCs Destroyed . | . . . Combat | -11 -10 -10 -------- Run | Yrd Mat Min Hostile Shots Fired 86 | . 28 58 Missed 26 | . 4 22 Damage Taken 842 | . 300 542 Core 261 | . 69 192 Absorbed by Shields . | . . . Redirected to Shielding 30 | . . 30 Regen/Repaired (Parts) 42 | . 42 . Core Remaining (%) 100 | 100 . . Volleys Fired 34 | 5 25 4 Largest 2 | 2 2 2 Hottest 105 | 80 105 105 Shots Fired 62 | 10 45 7 Gun 59 | 10 42 7 Cannon . | . . . Launcher . | . . . Special 3 | . 3 . Kinetic . | . . . Thermal 13 | . 9 4 Explosive . | . . . Electromagnetic 49 | 10 36 3 Robot Hit Streak 8 | 5 6 8 Robot Miss Streak 3 | 3 3 . Penetration Max . | . . . Secondary Targets 3 | . 3 . Max Gunslinging Chain 1 | . 1 . Shots Hit Robots 42 | 5 28 9 Core Hits 22 | 3 15 4 Critical Kills . | . . . Critical Parts Destroyed . | . . . Critical Strikes 2 | . . 2 Burn 1 | . . 1 Sever 1 | . . 1 Melee Attacks 2 | . . 2 Impact . | . . . Slashing 2 | . . 2 Piercing . | . . . Sneak Attacks . | . . . Combat Hostiles . | . . . Follow-up Attacks . | . . . Damage Inflicted 772 | 68 497 207 Guns 626 | 68 457 101 Cannons . | . . . Explosions 85 | . 40 45 Melee 61 | . . 61 Ramming . | . . . Kinetic . | . . . Thermal 182 | . 73 109 Explosive . | . . . Electromagnetic 529 | 68 424 37 Impact . | . . . Slashing 61 | . . 61 Piercing . | . . . Highest Corruption . | . . . Average Corruption . | . . . Corruption Purged . | . . . Corruption Blocked . | . . . Overload Shots . | . . . Overflow Damage . | . . . Projectiles . | . . . Explosions . | . . . Melee . | . . . Knockbacks . | . . . Impact . | . . . Kinetic . | . . . Secondary . | . . . Self-Inflicted Damage 37 | . . 37 Shots 1 | . . 1 Rammed . | . . . Targets Rammed . | . . . Kicked . | . . . Crushed . | . . . Highest Temperature 262 | 36 262 186 Average Temperature 81 | 18 90 83 Received Heat Transfer 348 | . 210 138 Effects 1 | . 1 . Interference 1 | . 1 . Siege Activations . | . . . Robots Corrupted . | . . . Combat Hostiles . | . . . Parts Fried 2 | 1 1 . Impact Corruptions . | . . . Robots Melted . | . . . Combat Hostiles . | . . . Parts Melted 1 | . . 1 Heat Transferred 396 | . 124 272 Parts Sabotaged . | . . . Parts Stolen . | . . . Parts Stripped . | . . . Power Chain Reactions 2 | . 1 1 Alert | -11 -10 -10 ------- Run | Yrd Mat Min Peak Influence 206 | 15 206 153 Initial 35 | . 9 35 Average 65 | 5 61 82 Maximum Alert Level 1 | . 1 . Low Security (%) 97 | 100 95 100 Level 1 2 | . 4 . Level 2 . | . . . Level 3 . | . . . Level 4 . | . . . Level 5 . | . . . High Security . | . . . Max Security . | . . . Squads Dispatched . | . . . Investigation . | . . . Extermination . | . . . Reinforcement . | . . . Assault . | . . . Garrison . | . . . Intercept . | . . . Searches Triggered . | . . . Construction Impeded . | . . . Haulers Reinforced . | . . . Active Scanning Responses . | . . . Cargo Convoy Interrupts . | . . . Stealth | -11 -10 -10 --------- Run | Yrd Mat Min Distress Signals 1 | . 1 . Communications Jammed . | . . . Distress Signals . | . . . Times Spotted 17 | . 11 6 Peak Tracking Total 5 | . 5 2 Tactical Retreats . | . . . Traps | -11 -10 -10 ------- Run | Yrd Mat Min Traps Triggered . | . . . Indirectly . | . . . Trap Hack Attempts . | . . . Triggered . | . . . Disarmed . | . . . Reprogrammed . | . . . Reused . | . . . Traps Extracted . | . . . Installed . | . . . Triggered . | . . . Machines | -11 -10 -10 ---------- Run | Yrd Mat Min Machines Disabled 1 | . 1 . Max in Single Turn 1 | . 1 . Machines Repaired . | . . . Machines Dismantled . | . . . Machines Sabotaged . | . . . Overloaded Fab Kills . | . . . Hacking | -11 -10 -10 --------- Run | Yrd Mat Min Machines Accessed 6 | . 6 . Terminals 5 | . 5 . Fabricators . | . . . Repair Stations 1 | . 1 . Recycling Units . | . . . Scanalyzers . | . . . Garrison Access . | . . . Total Hacks 20 | . 20 . Successful 9 | . 9 . Failed 11 | . 11 . Catastrophic 1 | . 1 . Database Lockouts . | . . . Manual 10 | . 10 . Terminals 17 | . 17 . Fabricators . | . . . Repair Stations 3 | . 3 . Recycling Units . | . . . Scanalyzers . | . . . Garrison Access . | . . . Terminal Hacks 3 | . 3 . Branch Access Points 1 | . 1 . Terminal Index 1 | . 1 . Unreport Threat 1 | . 1 . Fabricator Hacks . | . . . Repair Station Hacks 2 | . 2 . Scan Component 1 | . 1 . Repair 1 | . 1 . Recycling Unit Hacks . | . . . Scanalyzer . | . . . Garrison Access Hacks . | . . . Unauthorized Hacks 4 | . 4 . Terminals 4 | . 4 . Assimilate 1 | . 1 . Botnet 3 | . 3 . Fabricators . | . . . Repair Stations . | . . . Recycling Units . | . . . Scanalyzers . | . . . Garrison Access . | . . . Data Cores Recovered . | . . . Used . | . . . Hacking Detections 5 | . 5 . Full Trace Events . | . . . Feedback Events . | . . . Feedback Blocked . | . . . Robot Schematics Acquired . | . . . Robots Built . | . . . Authchips . | . . . Time . | . . . Total Robot Build Rating . | . . . Part Schematics Acquired . | . . . Parts Built . | . . . Authchips . | . . . Time . | . . . Total Part Build Rating . | . . . Parts Repaired 1 | . 1 . Time 26 | . 26 . Parts Recycled . | . . . Recycled Matter . | . . . Retrieved Matter . | . . . Retrieved Components . | . . . Parts Scanalyzed . | . . . Part Schematics Acquired . | . . . Parts Damaged . | . . . Bothacking | -11 -10 -10 ------------ Run | Yrd Mat Min Used RIF Installer . | . . . Robots Hacked . | . . . Non-combat . | . . . Combat . | . . . Robot Hacks Applied . | . . . Relay Couplers Released . | . . . Fabnet Peak Effective % . | . . . Robots Rewired . | . . . Allies Hacked . | . . . Hacks Repelled . | . . . Allies | -11 -10 -10 -------- Run | Yrd Mat Min Total Allies 3 | . 1 2 Largest Group 2 | . 1 2 Highest-Rated Group 45 | . 10 45 Highest-Rated Ally 31 | . 10 31 Total Orders . | . . . Ally Attacks 6 | . . 6 Total Damage 127 | . . 127 Kills 2 | . . 2 Allies Corrupted . | . . . Allies Melted 1 | . . 1 Intel | -11 -10 -10 ------- Run | Yrd Mat Min Robot Analysis Total . | . . . Derelict Logs Recovered . | . . . Drone Launches . | . . . Drone Recoveries . | . . . Exploration | -11 -10 -10 ------------- Run | Yrd Mat Min Turns Passed 1081 | 95 541 445 Spaces Moved 915 | 64 447 404 Core 22 | 18 . 4 Treads 1 | 1 . . Legs 53 | 1 . 52 Wheels 839 | 44 447 348 Hover . | . . . Flight . | . . . Fastest Speed 50 | 50 90 90 Average Speed 94 | 90 90 99 Slowest Speed 200 | 160 100 200 Overloaded Moves . | . . . Propulsion Burnouts . | . . . Robots Hopped . | . . . Cave-ins Triggered . | . . . Exploration Rate (%) 48 | 4 60 82 Regions Visited 2 Branch Regions 1 Pre-discovered Areas . | . . . Known Exits Taken 1 | . 1 . Unknown Exits Taken 1 | 1 . . Scrap Searched 3 | . . 3 Spaces Dug 3 | . 3 . Terrain Destroyed 13 | . 5 8 Melee . | . . . Projectile 3 | . 3 . AOE 10 | . 2 8 Terrain Rammed . | . . . Walls Destroyed . | . . . Machines Disabled . | . . . Actions | -11 -10 -10 --------- Run | Yrd Mat Min Total 1057 | 89 531 437 Wait 60 | . 38 22 Move 913 | 63 446 404 Hop . | . . . Pick Up 17 | 7 9 1 Fast Attach 8 | 6 . 2 Attach 6 | 3 3 . Detach 2 | 2 . . Swap 8 | 1 6 1 Drop 7 | 2 4 1 Fire 34 | 5 25 4 Melee 2 | . . 2 Ram . | . . . Kick . | . . . Crush . | . . . Escape Stasis . | . . . Rewire . | . . . Trap . | . . . Miscellaneous . | . . . Route ------- -11/Scrapyard -10/Materials (discovered 3 exits: [*Mat x2] / *Min) -10/Mines History --------- Turn | Location | Event 40 | -11/Scrapyard | Discovered new exit (range 15) 96 | -11/Scrapyard | Entered Materials 183 | -10/Materials | Discovered new exit (range 11) 254 | -10/Materials | Repaired EM Pulse Gun 314 | -10/Materials | Build established: Mutant 318 | -10/Materials | Discovered new exit (range 10) 340 | -10/Materials | Discovered new exit (range 16) 622 | -10/Materials | Identified exit to Mines 637 | -10/Materials | Entered Mines 662 | -10/Mines | Met a Derelict bent on vengeance 738 | -10/Mines | Assembled infested the area 797 | -10/Mines | A weapon hastily lodged in a ceiling crevice suddenly fell to the ground 1006 | -10/Mines | Core integrity fell below 50% 1017 | -10/Mines | Core integrity fell below 20% 1082 | -10/Mines | Destroyed by Y-45 Defender with Heavy Assault Rifle Last Messages --------------- 00883_ A pair of derelicts emerge from the shadows: "We're, um, lost. You wouldn't happen to know the way out of here, would you?" 00888_ K-01 Serf collects debris. 00895_ Searching scrap... 00895_ Found Hcp. Storage Unit. 00895_ Found Assault Rifle. 00895_ Found Lgt. Ion Engine. 00895_ Found 33 Matter. 00896_ Acquired 10 matter. 00942_ G-47 Trooper destroyed. 00944_ K-01 Serf collects debris. 01002_ TF-J8F(g) destroyed. 01003_ Lgt. Nuclear Core destroyed. 01004_ Y-45 Defender Lgt. Treads severed. 01009_ Wheel destroyed. 01017_ Acquired Carbon-fiber Leg. 01063_ R-06 Scavenger collects Seismic Detector. 01064_ K-01 Serf collects debris. 01081_ Acquired 10 matter. Map ----- +----------------------------------------------------+ | ??????????????????????????????????? = #?????????? | | ?????????????????????????????????###//###????????? | | ????????????????????????????????## #????????? | | ???????????????????????????????## ##???????? | | ###???????????????????????????## ##??????? | | ##??????????????????????????# %[ #??????? | | ##?????????????????????????# * #??????? | | ##???????????????????????## ## #??????? | | ############??????????### ##?####??????? | | !%*[ #?????????## ##????????????? | | ######### #?????????# #?????????????? | | #???????# #???####### #???####??????? | | ########## #???# #??## ##?????? | | ##?# #???# #### ##?## #?????? | | #??# ###### #???# #??## ##?## #?????? | | #??# ###??# #???# #???### ##??# ##?????? | | #?## #??# ##### #?????## #???# ###??????? | | #### ##?# #??????# #???# ##????????? | | #### ### ##### #??????# ##### #?????????? | | #### ## #??## ##?????# #?????????? | | ?## ##?# !%%############# #?????????? | | ?# ### %[* ## ##??## #?????????? | | # ## [= r #### #?????????? | | # #### ## r ## #?????????? | | ## ???## #### k YY ##?????????? | | ?## ????#####??## @ ## ##??????????? | | ??# ????????????##### ##### ##???????????? | | ??# ????????????????## ##???# #????????????? | | ??## ?????????????????# #????# #????????????? | | ???# ?????????????????## ##????# ????????????? | | ???## #??????????????????# #?????### ??????????? | | ????###???????????????????# #???????# ??????????? | | ??????????????????????????# #???????# #?????????? | | ??????????????????????????# #???????# #?????????? | | ?????????????????????????? #???????# #?????????? | | ??????????????????????????# #???????# #?????????? | | ?????????????????????????? #???????# #?????????? | | ??????????????????????????##????????# #?????????? | | ????????????????????????????????????# #?????????? | | ????????????????????????????????????# #?????????? | | ????????????????????????????????????# #?????????? | | ????????????????????????????????##### ##????????? | | ???????????????????????????###### # ####?????? | | ??????????????????????????## ####??? | | ?????????????????????????## ##?? | | ??????????????#####?????## """ #?? | | ?????????????## ##???# """ #?? | | #???????????## #???# ## """ #?? | | #???????????# ##???# ???###### #?? | | #???????????# #?????????# #?? | +----------------------------------------------------+ Best States ------------- Heat Dissipation 25 Energy Generation 14 Energy Capacity 250 Matter Stores 300 Matter Capacity 300 Sight Range 16 Terrain Scan Density 10 Weapon Shielding 33 Evasion (%) 55 Item Schematics ----------------- None Robot Schematics ------------------ None Fabricated ------------ Nothing Alien Tech Used ----------------- None Achievements -------------- None Challenges ------------ None Game ------ Seed SigixEnergyArachnoskeleton Manual? 0 Play Time 00:15:05 Cumulative 24.7 hours Start 2024.08.12 @ 13:59:57 End 2024.08.12 @ 14:12:29 Sessions 1 Manual Loads 0 Difficulty Rogue Special Mode None Game No. 6 Rogue 2 Adventurer 0 Explorer 4 Win Type - Total 1 Types 1/0/0/0/0/0/0/0/0 Lore% 7 Gallery% 23 Achievement% 26 Wizard Run 0 Options --------- Layout 1 ASCII 0 Keyboard 0 Movement Mouse Keybinds 0 Fullscreen 1 Font 36/Smallcaps Map View 50x40 Zoom Use 0% Tactical HUD 1 Map Filters NONE Filters NONE Steam 1 RUN: bd6cb5b0-0db3-49eb-850a-d0070db7a0d0